fUST/lending_fUST_20250731
["ID","MTS","AMOUNT","RATE_DAILY","PERIOD"]
[376403354,1753968633096,-486.68192286,0.00018972,2]
[376403356,1753968633106,-708.38497077,0.00018972,2]
[376403357,1753968633117,-708.38497077,0.00018972,2]
[376403359,1753968633127,-708.38497077,0.00018972,2]
[376403361,1753968633137,-708.38497077,0.00018972,2]
[376403363,1753968633147,-708.38497077,0.00018972,2]
[376403365,1753968633157,-708.38497077,0.00018972,2]
[376403367,1753968633166,-708.38497077,0.00018972,2]
[376403369,1753968633176,-708.38497077,0.00018972,2]
[376403371,1753968633186,-708.38497077,0.00018972,2]
[376403373,1753968633196,-708.38497077,0.00018972,2]
[376403375,1753968633206,-708.38497077,0.00018972,2]
[376403377,1753968633215,-708.38497077,0.00018972,2]
[376403379,1753968633225,-708.38497077,0.00018972,2]
[376403381,1753968633235,-708.38497077,0.00018972,2]
[376403384,1753968633245,-708.38497077,0.00018972,2]
[376403385,1753968633254,-500.0,0.00018972,2]
[376403388,1753968633264,-500.0,0.00018972,2]
[376403390,1753968633275,-281.74503448,0.00018972,2]
[376403392,1753968633285,-500.0,0.00018972,2]
[376403393,1753968633295,-500.0,0.00018972,2]
[376403395,1753968633304,-263.77964205,0.00018972,2]
[376403397,1753968633314,-500.0,0.00018972,2]
[376403399,1753968633324,-731.99780313,0.00018972,2]
[376403401,1753968633333,-731.99780313,0.00018972,2]
[376403403,1753968633343,-731.99780313,0.00018972,2]
[376403405,1753968633353,-731.99780313,0.00018972,2]
[376403407,1753968633362,-731.99780313,0.00018972,2]
[376403409,1753968633372,-731.99780313,0.00018972,2]
[376403411,1753968633382,-731.99780313,0.00018972,2]
[376403413,1753968633392,-731.99780313,0.00018972,2]
[376403415,1753968633402,-160.13129038,0.00018972,2]
[376403417,1753968633412,-500.0,0.00018972,2]
[376403419,1753968633422,-500.0,0.00018972,2]
[376403421,1753968633431,-479.78572191,0.00018972,2]
[376403423,1753968633441,-500.0,0.00018972,2]
[376403425,1753968633450,-442.52718706,0.00018972,2]
[376403427,1753968633460,-336.68623529,0.00018972,2]
[376403429,1753968633470,-500.0,0.00018972,2]
[376403431,1753968633479,-500.0,0.00018972,2]
[376403433,1753968633489,-500.0,0.00018972,2]
[376403435,1753968633499,-500.0,0.00018972,2]
[376403437,1753968633509,-500.0,0.00018972,2]
[376403439,1753968633518,-430.0,0.00018972,2]
[376403441,1753968633528,-53422.66373103,0.00018973,2]
[376404017,1753968639385,-352.13535753,0.00018973,2]
[376404022,1753968639397,-7861.962421,0.00018973,2]
[376404025,1753968639408,-25111.36426626,0.00018973,2]
[376404183,1753968640859,-469.47107365,0.00018973,2]
[376404190,1753968640923,-5592.18111646,0.00018973,2]
[376404454,1753968643635,-383.32980452,0.000189,2]
[376404456,1753968643645,-17454.30538914,0.00018973,2]
[376404459,1753968643657,-380.0,0.00018973,2]
[376404474,1753968643803,-1020.55924771,0.00018973,2]
[376404782,1753968646589,-500.0,0.00018972,2]
[376404784,1753968646599,-195.66966138,0.00018972,2]
[376404786,1753968646609,-21220.45207558,0.00018973,2]
[376404788,1753968646620,-43054.70578936,0.00018973,2]
[376404792,1753968646643,-32318.98163947,0.00018973,2]
[376404805,1753968646757,-1378.49826447,0.00018973,2]
[376406280,1753968841765,161.4319093,0.00018762,2]
[376406282,1753968928310,274.6750433,0.00017871,2]
[376406284,1753969082415,1564.7652653,0.00017868,2]
[376406286,1753969106202,882.92,0.00026027,120]
[376406288,1753969174639,769.36497267,0.0001877,2]
[376406289,1753969203159,2820.0,0.000187,2]
[376406290,1753969365731,729.9953046,0.0001877,2]
[376406291,1753969503114,2820.0,0.000187,2]
[376406292,1753969545554,996.23366162,0.00018772,2]
[376406293,1753969565949,638.74589149,0.0001877,2]
[376406295,1753969651999,161.4319093,0.00018673,2]
[376406297,1753969763987,185.02483164,0.00018296,2]
[376406299,1753969771286,558.90265508,0.0001877,2]
[376406302,1753969803151,2820.0,0.000187,2]
[376406349,1753969833205,-312.64461684,0.00018773,2]
[376406351,1753969833216,-179.1250557,0.00018773,2]
[376407011,1753969839832,-746.6994311,0.00018773,2]
[376407013,1753969839843,-23.67807149,0.00018862,2]
[376407015,1753969839864,-309.32192851,0.00018862,2]
[376407016,1753969839873,-504.73,0.00018862,3]
[376407018,1753969839883,-252.36,0.00018862,3]
[376407020,1753969839892,-757.12,0.00018862,3]
[376407022,1753969839902,-1200.0,0.00018867,2]
[376407023,1753969839911,-1200.0,0.00018868,2]
[376407025,1753969839920,-300.0,0.00018868,2]
[376407027,1753969839930,-300.0,0.00018868,2]
[376407028,1753969839940,-50000.0,0.0001887,2]
[376407030,1753969839949,-197.9716705,0.00018871,2]
[376407032,1753969839959,-270.0,0.00018871,2]
[376407034,1753969839968,-843.64317437,0.00018871,2]
[376407035,1753969839977,-515.48981792,0.00018871,2]
[376407037,1753969839987,-843.64317437,0.00018871,2]
[376407039,1753969839996,-843.64317437,0.00018871,2]
[376407040,1753969840006,-843.64317437,0.00018871,2]
[376407042,1753969840015,-843.64317437,0.00018871,2]
[376407044,1753969840025,-843.64317437,0.00018871,2]
[376407046,1753969840034,-843.64317437,0.00018871,2]
[376407047,1753969840044,-843.64317437,0.00018871,2]
[376407049,1753969840055,-843.64317437,0.00018871,2]
[376407051,1753969840065,-843.64317437,0.00018871,2]
[376407052,1753969840074,-843.64317437,0.00018871,2]
[376407054,1753969840084,-843.64317437,0.00018871,2]
[376407056,1753969840093,-843.64317437,0.00018871,2]
[376407057,1753969840103,-843.64317437,0.00018871,2]
[376407059,1753969840112,-843.64317437,0.00018871,2]
[376407061,1753969840123,-843.64317437,0.00018871,2]
[376407062,1753969840132,-928.0074918,0.00018871,2]
[376407064,1753969840142,-928.0074918,0.00018871,2]
[376407066,1753969840151,-928.0074918,0.00018871,2]
[376407068,1753969840161,-928.0074918,0.00018871,2]
[376407069,1753969840170,-928.0074918,0.00018871,2]
[376407071,1753969840180,-928.0074918,0.00018871,2]
[376407073,1753969840190,-928.0074918,0.00018871,2]
[376407075,1753969840199,-928.0074918,0.00018871,2]
[376407076,1753969840209,-928.0074918,0.00018871,2]
[376407078,1753969840218,-160.28079856,0.00018871,2]
[376407080,1753969840227,-300.0,0.00018871,2]
[376407082,1753969840237,-157.7539691,0.00018871,2]
[376407084,1753969840246,-964.51541639,0.00018871,2]
[376407085,1753969840255,-336200.13773122,0.00018872,2]
[376407087,1753969840265,-500.0,0.00018873,2]
[376407089,1753969840274,-500.0,0.00018873,2]
[376407091,1753969840284,-427.32035153,0.00018873,2]
[376407092,1753969840293,-549.5844987,0.00018873,2]
[376407094,1753969840305,-500.0,0.00018873,2]
[376407097,1753969840314,-500.0,0.00018873,2]
[376407100,1753969840324,-500.0,0.00018873,2]
[376407102,1753969840333,-172.08481441,0.00018873,2]
[376407103,1753969840342,-539.4923896,0.00018873,2]
[376407105,1753969840352,-500.0,0.00018873,2]
[376407107,1753969840361,-500.0,0.00018873,2]
[376407109,1753969840372,-500.0,0.00018873,2]
[376407111,1753969840382,-500.0,0.00018873,2]
[376407113,1753969840391,-500.0,0.00018873,2]
[376407114,1753969840401,-500.0,0.00018873,2]
[376407116,1753969840414,-502.37147298,0.00018873,2]
[376407118,1753969840424,-504.24656835,0.00018873,2]
[376407119,1753969840433,-500.0,0.00018873,2]
[376407121,1753969840443,-312.6446168,0.00018893,2]
[376407123,1753969840455,-2216.78424223,0.000189,2]
[376407125,1753969840464,-4034.11388557,0.000189,2]
[376407127,1753969840474,-500.0,0.00018971,2]
[376407128,1753969840483,-624.0,0.00018971,2]
[376407130,1753969840492,-500.0,0.00018971,2]
[376407132,1753969840502,-256.37951896,0.00018971,2]
[376407134,1753969840511,-151.0,0.00018971,2]
[376407136,1753969840521,-579.79151013,0.00018973,2]
[376407137,1753969840530,-151.0,0.00019,2]
[376407139,1753969840540,-312.6446168,0.00019013,2]
[376407141,1753969840551,-4034.11388536,0.00019038,2]
[376407143,1753969840561,-298.54668281,0.00019077,2]
[376407145,1753969840570,-19154.04001289,0.00019078,2]
[376407146,1753969840580,-151.0,0.000191,2]
[376407148,1753969840590,-312.6446168,0.00019132,2]
[376407150,1753969840599,-500.0,0.00019147,2]
[376407152,1753969840609,-500.0,0.00019173,2]
[376407154,1753969840619,-500.0,0.00019173,2]
[376407156,1753969840629,-501.41237042,0.00019173,2]
[376407157,1753969840646,-500.0,0.00019173,2]
[376407159,1753969840655,-500.83702583,0.00019173,2]
[376407161,1753969840664,-500.52656431,0.00019173,2]
[376407163,1753969840674,-502.39832233,0.00019173,2]
[376407165,1753969840683,-500.65557338,0.00019173,2]
[376407166,1753969840693,-431.02658484,0.00019173,2]
[376407168,1753969840703,-500.0,0.00019173,2]
[376407170,1753969840713,-500.0,0.00019173,2]
[376407172,1753969840722,-500.0,0.00019173,2]
[376407174,1753969840732,-500.0,0.00019173,2]
[376407175,1753969840741,-500.0,0.00019173,2]
[376407177,1753969840751,-500.0,0.00019173,2]
[376407179,1753969840760,-442.48622885,0.00019173,2]
[376407181,1753969840770,-600.0,0.00019173,2]
[376407183,1753969840780,-500.0,0.00019173,2]
[376407184,1753969840789,-500.0,0.00019173,2]
[376407186,1753969840799,-501.20491629,0.00019173,2]
[376407188,1753969840809,-500.0,0.00019173,2]
[376407190,1753969840818,-500.0,0.00019173,2]
[376407191,1753969840827,-500.0,0.00019173,2]
[376407194,1753969840836,-500.0,0.00019173,2]
[376407197,1753969840845,-151.0,0.00019173,2]
[376407199,1753969840855,-151.0,0.00019173,2]
[376407200,1753969840864,-500.0,0.00019173,2]
[376407202,1753969840876,-500.0,0.00019173,2]
[376407204,1753969840886,-151.0,0.00019173,2]
[376407206,1753969840895,-151.0,0.00019173,2]
[376407208,1753969840905,-4034.11388536,0.00019176,2]
[376407210,1753969840914,-460.97018039,0.00019178,2]
[376407211,1753969840923,-460.0,0.00019178,2]
[376407213,1753969840933,-460.0,0.00019178,2]
[376407215,1753969840942,-460.0,0.00019178,2]
[376407217,1753969840951,-461.59803318,0.00019178,2]
[376407218,1753969840960,-176.63968327,0.00019178,2]
[376407220,1753969840970,-461.58217338,0.00019178,2]
[376407222,1753969840979,-250.95057268,0.00019178,2]
[376407224,1753969840989,-460.0,0.00019178,2]
[376407226,1753969840998,-460.0,0.00019178,2]
[376407228,1753969841008,-373.54418214,0.00019178,2]
[376407229,1753969841017,-460.0,0.00019178,2]
[376407231,1753969841026,-464.43961978,0.00019178,2]
[376407233,1753969841036,-460.0,0.00019178,2]
[376407235,1753969841046,-544.09783905,0.00019178,2]
[376407237,1753969841056,-460.0,0.00019178,2]
[376407238,1753969841066,-460.0,0.00019178,2]
[376407240,1753969841075,-460.0,0.00019178,2]
[376407242,1753969841084,-442.91922012,0.00019178,2]
[376407244,1753969841093,-460.0,0.00019178,2]
[376407245,1753969841103,-460.0,0.00019178,2]
[376407247,1753969841112,-333.20187315,0.00019178,2]
[376407249,1753969841122,-461.03776415,0.00019178,2]
[376407251,1753969841131,-151.7041797,0.00019178,2]
[376407253,1753969841142,-460.74652472,0.00019178,2]
[376407254,1753969841152,-462.11077979,0.00019178,2]
[376407256,1753969841161,-460.0,0.00019178,2]
[376407258,1753969841171,-461.65912816,0.00019178,2]
[376407260,1753969841182,-460.0,0.00019178,2]
[376407262,1753969841192,-460.0,0.00019178,2]
[376407264,1753969841201,-460.0,0.00019178,2]
[376407265,1753969841211,-460.0,0.00019178,2]
[376407267,1753969841220,-460.0,0.00019178,2]
[376407269,1753969841230,-460.0,0.00019178,2]
[376407271,1753969841239,-460.0,0.00019178,2]
[376407273,1753969841248,-460.41343504,0.00019178,2]
[376407274,1753969841258,-460.0,0.00019178,2]
[376407276,1753969841268,-460.0,0.00019178,2]
[376407278,1753969841277,-460.0,0.00019178,2]
[376407280,1753969841287,-460.0,0.00019178,2]
[376407281,1753969841296,-460.0,0.00019178,2]
[376407283,1753969841307,-460.0,0.00019178,2]
[376407285,1753969841316,-460.0,0.00019178,2]
[376407287,1753969841326,-514.3,0.00019178,2]
[376407289,1753969841335,-460.0,0.00019178,2]
[376407290,1753969841344,-460.0,0.00019178,2]
[376407292,1753969841354,-460.0,0.00019178,2]
[376407294,1753969841363,-460.0,0.00019178,2]
[376407296,1753969841373,-460.0,0.00019178,2]
[376407298,1753969841382,-460.0,0.00019178,2]
[376407300,1753969841392,-460.0,0.00019178,2]
[376407301,1753969841401,-461.06615853,0.00019178,2]
[376407303,1753969841411,-460.0,0.00019178,2]
[376407305,1753969841420,-460.0,0.00019178,2]
[376407307,1753969841430,-460.0,0.00019178,2]
[376407309,1753969841440,-460.0,0.00019178,2]
[376407310,1753969841452,-460.0,0.00019178,2]
[376407312,1753969841461,-460.0,0.00019178,2]
[376407314,1753969841470,-460.0,0.00019178,2]
[376407316,1753969841481,-460.0,0.00019178,2]
[376407318,1753969841490,-463.09850051,0.00019178,2]
[376407319,1753969841501,-460.0,0.00019178,2]
[376407321,1753969841510,-460.0,0.00019178,2]
[376407323,1753969841520,-460.0,0.00019178,2]
[376407325,1753969841530,-460.0,0.00019178,2]
[376407327,1753969841539,-460.0,0.00019178,2]
[376407329,1753969841549,-460.0,0.00019178,2]
[376407330,1753969841558,-460.0,0.00019178,2]
[376407332,1753969841567,-460.0,0.00019178,2]
[376407334,1753969841577,-460.0,0.00019178,2]
[376407336,1753969841586,-460.0,0.00019178,2]
[376407338,1753969841596,-460.0,0.00019178,2]
[376407339,1753969841605,-460.0,0.00019178,2]
[376407341,1753969841615,-460.0,0.00019178,2]
[376407343,1753969841624,-460.0,0.00019178,2]
[376407345,1753969841634,-460.0,0.00019178,2]
[376407346,1753969841643,-461.78053114,0.00019178,2]
[376407348,1753969841653,-460.0,0.00019178,2]
[376407350,1753969841662,-460.0,0.00019178,2]
[376407352,1753969841672,-460.0,0.00019178,2]
[376407354,1753969841681,-460.0,0.00019178,2]
[376407356,1753969841691,-460.0,0.00019178,2]
[376407358,1753969841700,-460.0,0.00019178,2]
[376407360,1753969841710,-465.00686891,0.00019178,2]
[376407362,1753969841719,-293.32744307,0.00019178,2]
[376407364,1753969841729,-460.0,0.00019178,2]
[376407366,1753969841738,-460.0,0.00019178,2]
[376407368,1753969841747,-460.0,0.00019178,2]
[376407370,1753969841756,-460.0,0.00019178,2]
[376407372,1753969841765,-460.0,0.00019178,2]
[376407374,1753969841774,-184.91321282,0.00019178,2]
[376407375,1753969841794,-462.55631746,0.00019178,2]
[376407376,1753969841805,-529.42,0.00019178,2]
[376407377,1753969841815,-283.17895427,0.00019178,2]
[376407378,1753969841824,-460.0,0.00019178,2]
[376407379,1753969841835,-460.0,0.00019178,2]
[376407380,1753969841844,-460.0,0.00019178,2]
[376407381,1753969841855,-460.0,0.00019178,2]
[376407382,1753969841864,-462.40130693,0.00019178,2]
[376407383,1753969841877,-460.0,0.00019178,2]
[376407384,1753969841886,-460.0,0.00019178,2]
[376407385,1753969841897,-460.0,0.00019178,2]
[376407386,1753969841907,-460.0,0.00019178,2]
[376407387,1753969841916,-460.0,0.00019178,2]
[376407388,1753969841926,-460.0,0.00019178,2]
[376407389,1753969841935,-168.38590766,0.00019178,2]
[376407390,1753969841945,-462.4741188,0.00019178,2]
[376407391,1753969841955,-460.0,0.00019178,2]
[376407392,1753969841965,-460.0,0.00019178,2]
[376407393,1753969841974,-460.0,0.00019178,2]
[376407394,1753969841985,-313.63502719,0.00019178,2]
[376407395,1753969841995,-460.56007321,0.00019178,2]
[376407396,1753969842005,-460.0,0.00019178,2]
[376407397,1753969842015,-408.61930963,0.00019178,2]
[376407398,1753969842025,-460.0,0.00019178,2]
[376407399,1753969842035,-460.0,0.00019178,2]
[376407400,1753969842046,-460.0,0.00019178,2]
[376407401,1753969842058,-460.0,0.00019178,2]
[376407402,1753969842068,-460.0,0.00019178,2]
[376407403,1753969842078,-460.0,0.00019178,2]
[376407405,1753969842088,-460.0,0.00019178,2]
[376407406,1753969842098,-460.0,0.00019178,2]
[376407407,1753969842108,-460.0,0.00019178,2]
[376407409,1753969842118,-464.79046838,0.00019178,2]
[376407410,1753969842128,-206.12866256,0.00019178,2]
[376407412,1753969842138,-460.0,0.00019178,2]
[376407414,1753969842148,-462.35566578,0.00019178,2]
[376407416,1753969842158,-253.93742996,0.00019178,2]
[376407418,1753969842168,-460.0,0.00019178,2]
[376407420,1753969842178,-462.80157234,0.00019178,2]
[376407422,1753969842187,-460.0,0.00019178,2]
[376407424,1753969842197,-460.0,0.00019178,2]
[376407426,1753969842206,-462.35300803,0.00019178,2]
[376407428,1753969842216,-460.0,0.00019178,2]
[376407430,1753969842226,-460.0,0.00019178,2]
[376407432,1753969842235,-460.0,0.00019178,2]
[376407434,1753969842244,-460.0,0.00019178,2]
[376407436,1753969842254,-237.04778176,0.00019178,2]
[376407438,1753969842263,-460.0,0.00019178,2]
[376407440,1753969842273,-769.66,0.00019178,2]
[376407442,1753969842282,-460.75764104,0.00019178,2]
[376407444,1753969842291,-460.0,0.00019178,2]
[376407446,1753969842303,-460.0,0.00019178,2]
[376407448,1753969842314,-460.0,0.00019178,2]
[376407450,1753969842323,-460.91307516,0.00019178,2]
[376407452,1753969842333,-515.51,0.00019178,2]
[376407454,1753969842342,-462.25730716,0.00019178,2]
[376407456,1753969842351,-460.0,0.00019178,2]
[376407458,1753969842361,-462.64498655,0.00019178,2]
[376407460,1753969842371,-460.0,0.00019178,2]
[376407462,1753969842380,-460.0,0.00019178,2]
[376407464,1753969842390,-460.0,0.00019178,2]
[376407466,1753969842399,-462.30424904,0.00019178,2]
[376407468,1753969842408,-460.0,0.00019178,2]
[376407470,1753969842418,-460.0,0.00019178,2]
[376407472,1753969842427,-461.04596966,0.00019178,2]
[376407474,1753969842437,-460.0,0.00019178,2]
[376407476,1753969842448,-460.0,0.00019178,2]
[376407478,1753969842458,-461.47925515,0.00019178,2]
[376407480,1753969842467,-460.0,0.00019178,2]
[376407482,1753969842477,-559.99,0.00019178,2]
[376407484,1753969842487,-460.0,0.00019178,2]
[376407486,1753969842498,-460.0,0.00019178,2]
[376407489,1753969842508,-460.0,0.00019178,2]
[376407491,1753969842517,-460.0,0.00019178,2]
[376407493,1753969842526,-460.0,0.00019178,2]
[376407495,1753969842535,-248.6908703,0.00019178,2]
[376407497,1753969842544,-460.0,0.00019178,2]
[376407499,1753969842555,-462.78358028,0.00019178,2]
[376407501,1753969842565,-460.0,0.00019178,2]
[376407503,1753969842575,-460.0,0.00019178,2]
[376407505,1753969842584,-460.0,0.00019178,2]
[376407507,1753969842594,-460.0,0.00019178,2]
[376407509,1753969842603,-460.0,0.00019178,2]
[376407511,1753969842613,-462.75009355,0.00019178,2]
[376407513,1753969842623,-460.0,0.00019178,2]
[376407515,1753969842632,-460.0,0.00019178,2]
[376407517,1753969842641,-460.0,0.00019178,2]
[376407519,1753969842651,-460.0,0.00019178,2]
[376407521,1753969842660,-460.0,0.00019178,2]
[376407523,1753969842670,-473.13913512,0.00019178,2]
[376407526,1753969842684,-460.0,0.00019178,2]
[376407528,1753969842694,-460.0,0.00019178,2]
[376407530,1753969842704,-460.0,0.00019178,2]
[376407532,1753969842713,-460.0,0.00019178,2]
[376407534,1753969842723,-750.12,0.00019178,2]
[376407536,1753969842733,-460.0,0.00019178,2]
[376407538,1753969842743,-461.49687785,0.00019178,2]
[376407540,1753969842753,-460.0,0.00019178,2]
[376407542,1753969842763,-460.0,0.00019178,2]
[376407544,1753969842772,-460.0,0.00019178,2]
[376407546,1753969842782,-460.0,0.00019178,2]
[376407548,1753969842792,-460.0,0.00019178,2]
[376407550,1753969842802,-460.0,0.00019178,2]
[376407552,1753969842812,-579.2883153,0.00019178,2]
[376407554,1753969842822,-460.0,0.00019178,2]
[376407556,1753969842831,-460.0,0.00019178,2]
[376407558,1753969842841,-460.0,0.00019178,2]
[376407561,1753969842851,-460.0,0.00019178,2]
[376407563,1753969842860,-460.0,0.00019178,2]
[376407565,1753969842870,-460.0,0.00019178,2]
[376407567,1753969842880,-461.64451774,0.00019178,2]
[376407569,1753969842890,-460.0,0.00019178,2]
[376407571,1753969842899,-460.0,0.00019178,2]
[376407573,1753969842909,-566.37487365,0.00019178,2]
[376407575,1753969842919,-460.0,0.00019178,2]
[376407577,1753969842929,-471.74,0.00019178,2]
[376407579,1753969842938,-460.0,0.00019178,2]
[376407582,1753969842955,-460.0,0.00019178,2]
[376407584,1753969842965,-460.0,0.00019178,2]
[376407586,1753969842975,-460.0,0.00019178,2]
[376407606,1753969843154,-460.0,0.00019178,2]
[376407608,1753969843165,-460.0,0.00019178,2]
[376407610,1753969843176,-460.0,0.00019178,2]
[376407612,1753969843185,-605.1819538,0.00019178,2]
[376407614,1753969843195,-460.0,0.00019178,2]
[376407616,1753969843205,-460.0,0.00019178,2]
[376407618,1753969843214,-460.0,0.00019178,2]
[376407620,1753969843224,-460.0,0.00019178,2]
[376407622,1753969843233,-460.0,0.00019178,2]
[376407625,1753969843242,-525.71750877,0.00019178,2]
[376407628,1753969843252,-293.62844679,0.00019178,2]
[376407630,1753969843261,-302.4875668,0.00019178,2]
[376407633,1753969843270,-460.0,0.00019178,2]
[376407635,1753969843280,-521.97369392,0.00019178,2]
[376407637,1753969843290,-460.0,0.00019178,2]
[376407639,1753969843299,-460.0,0.00019178,2]
[376407641,1753969843310,-460.0,0.00019178,2]
[376407643,1753969843319,-460.0,0.00019178,2]
[376407646,1753969843329,-460.0,0.00019178,2]
[376407648,1753969843338,-565.97406261,0.00019178,2]
[376407650,1753969843347,-562.13,0.00019178,2]
[376407652,1753969843357,-460.0,0.00019178,2]
[376407654,1753969843367,-460.0,0.00019178,2]
[376407656,1753969843376,-460.0,0.00019178,2]
[376407658,1753969843386,-460.0,0.00019178,2]
[376407660,1753969843396,-460.0,0.00019178,2]
[376407662,1753969843405,-461.71329253,0.00019178,2]
[376407665,1753969843414,-460.0,0.00019178,2]
[376407668,1753969843423,-460.0,0.00019178,2]
[376407671,1753969843432,-460.0,0.00019178,2]
[376407673,1753969843442,-460.0,0.00019178,2]
[376407675,1753969843454,-460.0,0.00019178,2]
[376407677,1753969843464,-460.0,0.00019178,2]
[376407679,1753969843472,-460.0,0.00019178,2]
[376407681,1753969843482,-460.0,0.00019178,2]
[376407683,1753969843492,-460.0,0.00019178,2]
[376407685,1753969843501,-460.0,0.00019178,2]
[376407687,1753969843510,-460.0,0.00019178,2]
[376407689,1753969843519,-460.0,0.00019178,2]
[376407691,1753969843530,-460.0,0.00019178,2]
[376407693,1753969843539,-460.0,0.00019178,2]
[376407695,1753969843548,-460.0,0.00019178,2]
[376407697,1753969843562,-460.0,0.00019178,2]
[376407699,1753969843571,-460.0,0.00019178,2]
[376407701,1753969843580,-460.0,0.00019178,2]
[376407703,1753969843589,-467.46,0.00019178,2]
[376407705,1753969843599,-460.0,0.00019178,2]
[376407707,1753969843608,-460.0,0.00019178,2]
[376407709,1753969843618,-462.49732318,0.00019178,2]
[376407711,1753969843628,-460.0,0.00019178,2]
[376407713,1753969843637,-460.0,0.00019178,2]
[376407715,1753969843646,-460.0,0.00019178,2]
[376407717,1753969843655,-463.03369729,0.00019178,2]
[376407719,1753969843664,-460.0,0.00019178,2]
[376407721,1753969843674,-460.42654996,0.00019178,2]
[376407723,1753969843683,-460.0,0.00019178,2]
[376407725,1753969843692,-460.0,0.00019178,2]
[376407727,1753969843702,-460.0,0.00019178,2]
[376407729,1753969843711,-460.0,0.00019178,2]
[376407731,1753969843719,-460.0,0.00019178,2]
[376407733,1753969843729,-460.0,0.00019178,2]
[376407735,1753969843738,-460.0,0.00019178,2]
[376407737,1753969843748,-460.0,0.00019178,2]
[376407740,1753969843757,-460.0,0.00019178,2]
[376407743,1753969843766,-460.0,0.00019178,2]
[376407745,1753969843775,-460.0,0.00019178,2]
[376407748,1753969843784,-460.0,0.00019178,2]
[376407750,1753969843794,-460.0,0.00019178,2]
[376407752,1753969843805,-460.0,0.00019178,2]
[376407754,1753969843814,-460.0,0.00019178,2]
[376407756,1753969843824,-460.0,0.00019178,2]
[376407758,1753969843833,-460.0,0.00019178,2]
[376407760,1753969843843,-463.93119785,0.00019178,2]
[376407762,1753969843853,-460.0,0.00019178,2]
[376407764,1753969843863,-703.0,0.00019178,2]
[376407766,1753969843872,-461.67799707,0.00019178,2]
[376407768,1753969843881,-460.0,0.00019178,2]
[376407770,1753969843890,-460.0,0.00019178,2]
[376407772,1753969843900,-460.0,0.00019178,2]
[376407774,1753969843909,-460.0,0.00019178,2]
[376407776,1753969843918,-460.0,0.00019178,2]
[376407778,1753969843928,-460.0,0.00019178,2]
[376407780,1753969843937,-544.9238883,0.00019178,2]
[376407782,1753969843947,-500.0,0.00019178,2]
[376407784,1753969843956,-460.0,0.00019178,2]
[376407786,1753969843966,-1860.96,0.00019178,2]
[376407788,1753969843977,-460.0,0.00019178,2]
[376407790,1753969843987,-460.0,0.00019178,2]
[376407792,1753969843996,-460.0,0.00019178,2]
[376407794,1753969844006,-460.0,0.00019178,2]
[376407796,1753969844016,-460.0,0.00019178,2]
[376407798,1753969844025,-2252.6,0.00019178,2]
[376407800,1753969844034,-460.0,0.00019178,2]
[376407802,1753969844044,-460.0,0.00019178,2]
[376407804,1753969844055,-460.0,0.00019178,2]
[376407806,1753969844065,-460.0,0.00019178,2]
[376407808,1753969844074,-460.0,0.00019178,2]
[376407810,1753969844083,-460.0,0.00019178,2]
[376407812,1753969844093,-460.0,0.00019178,2]
[376407814,1753969844103,-460.0,0.00019178,2]
[376407816,1753969844112,-460.0,0.00019178,2]
[376407819,1753969844122,-460.0,0.00019178,2]
[376407821,1753969844131,-460.0,0.00019178,2]